bitfinex-derivatives/quotes_SOLF0:USTF0_20250331
["timestamp","ask_amount","ask_price","bid_price","bid_amount"]
[1743433988776,0.05653122,126.96,126.92,34.46]
[1743433988976,0.05653122,126.96,126.92,42.3391]
[1743433989183,7.93393122,126.96,126.92,42.3391]
[1743433989388,0.05653122,126.96,126.92,42.3391]
[1743433989682,7.93393122,126.96,126.92,42.3391]
[1743433989979,25.78814327,126.96,126.88,8.4563]
[1743433990187,7.8786,126.94,126.91,34.46]
[1743433990484,0.0537936,126.93,126.91,34.46]
[1743433991073,0.0537936,126.93,126.92,7.8796]
[1743433994686,0.0537936,126.93,126.91,42.34]
[1743433994888,0.0537936,126.93,126.91,34.46]
[1743433996091,0.0537936,126.93,126.92,7.8796]
[1743433997790,0.0537936,126.93,126.91,34.46]
[1743433998789,7.9328936,126.93,126.91,34.46]
[1743433999595,7.8796,126.92,126.91,34.46]
[1743433999795,0.0537936,126.93,126.9,34.46]
[1743434000191,7.8798,126.92,126.9,34.46]
[1743434000497,0.0537936,126.93,126.9,34.46]
[1743434001198,7.8797,126.92,126.9,34.46]
[1743434001599,0.0537936,126.93,126.9,34.46]
[1743434001800,0.0537936,126.93,126.87,358.0]
[1743434002104,25.73161205,126.9,126.85,34.46]
[1743434002600,0.05026856,126.89,126.82,10.8759]
[1743434002898,0.05026856,126.89,126.83,34.46]
[1743434003294,8.26916856,126.89,126.83,34.46]
[1743434003490,8.26916856,126.89,126.83,42.3451]
[1743434003895,8.26916856,126.89,126.83,34.46]
[1743434004095,25.73161205,126.88,126.83,34.46]
[1743434004499,8.26916856,126.89,126.83,34.46]
[1743434004701,7.93196856,126.89,126.85,7.8836]
[1743434005402,25.73161205,126.88,126.79,34.46]
[1743434005796,0.04965127,126.85,126.82,7.8852]
[1743434006501,0.04965127,126.85,126.79,34.46]
[1743434007303,0.04965127,126.85,126.79,60.19161205]
[1743434007501,0.04965127,126.85,126.79,34.46]
[1743434008008,7.93355127,126.85,126.81,7.8861]
[1743434008304,0.04965127,126.85,126.79,34.46]
[1743434008504,7.8856,126.83,126.79,42.3472]
[1743434008702,25.73161205,126.86,126.79,34.46]
[1743434008900,0.0549268,126.82,126.79,34.46]
[1743434009108,0.0549268,126.82,126.8,7.8868]
[1743434009608,0.0549268,126.82,126.79,42.3474]
[1743434009809,0.0549268,126.82,126.79,34.46]
[1743434010498,7.887,126.8,126.79,34.46]
[1743434010701,7.887,126.8,126.77,42.3486]
[1743434011310,0.0549268,126.82,126.78,7.8878]
[1743434011806,7.8871,126.8,126.77,42.3486]
[1743434012307,0.0549268,126.82,126.78,7.8879]
[1743434012308,7.8867,126.81,126.78,7.8879]
[1743434013009,7.8873,126.8,126.77,42.3487]
[1743434013210,0.0549268,126.82,126.77,42.3487]
[1743434013511,7.8874,126.8,126.77,42.3487]
[1743434013815,7.8874,126.8,126.78,7.8882]
[1743434014008,7.8867,126.81,126.78,7.8882]
[1743434014607,7.8871,126.8,126.77,42.3485]
[1743434014807,7.8871,126.8,126.77,34.46]
[1743434015013,16.16625803,126.82,126.77,34.46]
[1743434015206,7.8869,126.81,126.78,7.8882]
[1743434015605,16.16625803,126.82,126.77,34.46]
[1743434016714,7.8869,126.81,126.78,7.8879]
[1743434017217,0.0549268,126.82,126.77,34.46]
[1743434017415,7.9411268,126.82,126.79,7.8872]
[1743434017715,0.0549268,126.82,126.77,34.46]
[1743434018010,7.8867,126.81,126.79,7.8876]
[1743434019014,7.9410268,126.82,126.8,7.887]
[1743434019213,7.9410268,126.82,126.77,34.46]
[1743434019811,7.9410268,126.82,126.8,7.8869]
[1743434021413,7.8871,126.8,126.77,34.46]
[1743434022021,7.8871,126.8,126.78,7.8881]
[1743434022921,0.0549268,126.82,126.75,50.57133123]
[1743434023121,20.10633123,126.86,126.77,16.11133123]
[1743434023322,0.05905532,126.8,126.79,7.8876]
[1743434023623,3.995,126.86,126.79,50.57133123]
[1743434023826,11.8785,126.86,126.79,50.57133123]
[1743434024023,16.11133123,126.88,126.79,50.57133123]
[1743434024426,7.8834,126.86,126.84,7.8844]
[1743434024619,7.8834,126.86,126.84,42.3444]
[1743434024822,0.05947984,126.86,126.84,34.46]
[1743434025228,0.05947984,126.86,126.85,7.8839]
[1743434026323,0.05947984,126.86,126.84,42.3442]
[1743434028032,0.05947984,126.86,126.85,7.8839]
[1743434030130,24.24003123,126.92,126.88,7.8816]
[1743434030431,24.24003123,126.92,126.88,42.3216]
[1743434030828,7.8811,126.9,126.88,42.3216]
[1743434031124,24.24003123,126.92,126.88,34.44]
[1743434031332,7.8814,126.89,126.88,34.49685821]
[1743434037636,7.9388184,126.9,126.88,34.49685821]
[1743434037836,0.0577184,126.9,126.88,34.49685821]
[1743434038437,0.0577184,126.9,126.88,42.37865821]
[1743434038737,0.0577184,126.9,126.88,34.49685821]
[1743434038931,7.9388184,126.9,126.88,34.49685821]
[1743434039545,0.0577184,126.9,126.88,42.37885821]
[1743434040234,0.0577184,126.9,126.89,7.8814]
[1743434040832,0.0577184,126.9,126.88,34.49685821]
[1743434041427,0.0577184,126.9,126.88,42.37835821]
[1743434041835,0.0577184,126.9,126.88,34.49685821]
[1743434042135,0.0577184,126.9,126.89,7.8814]
[1743434042336,0.0577184,126.9,126.88,34.49685821]
[1743434042637,0.0577184,126.9,126.88,42.37865821]
[1743434043039,0.0577184,126.9,126.88,34.49685821]
[1743434043542,7.8814,126.89,126.88,34.49685821]
[1743434043730,0.0577184,126.9,126.88,34.49685821]
[1743434045342,0.0577184,126.9,126.89,7.8814]
[1743434045641,0.0577184,126.9,126.88,34.49685821]
[1743434046340,0.0577184,126.9,126.88,0.05685821]
[1743434046941,0.0577184,126.9,126.82,16.11133123]
[1743434046942,16.16904963,126.9,126.82,16.11133123]
[1743434047144,4.1657,126.89,126.83,34.4]
[1743434047746,7.8831,126.87,126.84,7.8845]
[1743434048041,4.1657,126.89,126.83,34.4]
[1743434048349,0.05090833,126.87,126.84,0.05179895]
[1743434048737,0.05090833,126.87,126.85,42.2836]
[1743434049642,7.8833,126.86,126.85,34.4]
[1743434049848,7.8833,126.86,126.84,0.05179895]
[1743434050345,0.05090833,126.87,126.84,0.05179895]
[1743434050941,16.11133123,126.86,126.84,0.05179895]
[1743434051146,16.11133123,126.86,126.78,34.4]
[1743434051343,16.11133123,126.84,126.78,34.4]
[1743434052146,7.8853,126.83,126.8,7.8867]
[1743434052343,0.05511534,126.82,126.8,7.8867]
[1743434052742,0.05511534,126.82,126.79,7.8873]
[1743434052945,0.05511534,126.82,126.78,34.4]
[1743434053245,0.05511534,126.82,126.8,7.8867]
[1743434053946,0.05511534,126.82,126.78,34.4]
[1743434054448,7.94091534,126.82,126.78,34.4]
[1743434055042,0.05511534,126.82,126.78,34.4]
[1743434055547,0.05511534,126.82,126.79,34.38]
[1743434056250,7.8867,126.81,126.79,34.38]
[1743434056450,0.05511534,126.82,126.79,34.38]
[1743434056743,7.887,126.8,126.79,34.38]
[1743434060054,0.05511534,126.82,126.79,50.49133123]
[1743434060447,0.05511534,126.82,126.79,58.37863123]
[1743434060448,7.94091534,126.82,126.79,58.37863123]
[1743434060747,7.94091534,126.82,126.79,50.49133123]
[1743434060947,0.05511534,126.82,126.79,50.49133123]
[1743434061249,7.8867,126.81,126.79,50.49133123]
[1743434062050,7.8867,126.81,126.79,34.38]
[1743434062449,0.05511534,126.82,126.79,34.38]
[1743434062650,0.05511534,126.82,126.77,374.11133123]
[1743434062651,0.05511534,126.82,126.8,34.38]
[1743434063049,7.8864,126.81,126.8,34.38]
[1743434063550,0.05511534,126.82,126.79,34.38]
[1743434063746,0.05511534,126.82,126.77,358.0]
[1743434063940,0.05511534,126.82,126.78,34.38]
[1743434064652,7.8876,126.8,126.78,34.38]
[1743434064845,0.05511534,126.82,126.78,34.38]
[1743434065248,7.8865,126.81,126.78,34.38]
[1743434065448,0.05511534,126.82,126.78,34.38]
[1743434065653,7.8865,126.81,126.78,34.38]
[1743434067754,7.8865,126.81,126.78,44.69332347]
[1743434068354,10.36843881,126.82,126.78,44.69332347]
[1743434068854,10.36843881,126.82,126.78,34.38]
[1743434069055,10.31332347,126.81,126.78,34.38]
[1743434069854,10.31332347,126.81,126.76,18.20272347]
[1743434070056,10.31332347,126.81,126.77,34.38]
[1743434070455,7.8874,126.8,126.77,34.38]
[1743434070954,7.8873,126.8,126.76,18.20252347]
[1743434071154,10.31332347,126.81,126.78,34.36]
[1743434071354,0.05869486,126.79,126.78,34.36]
[1743434071556,0.05869486,126.79,126.76,18.20252347]
[1743434071752,0.05869486,126.79,126.77,34.36]
[1743434072152,0.05869486,126.79,126.77,42.2488]
[1743434072652,0.05869486,126.79,126.78,18.20162347]
[1743434072953,0.05869486,126.79,126.78,7.8883]
[1743434073153,7.94629486,126.79,126.77,34.36]
[1743434073354,0.05869486,126.79,126.77,34.36]
[1743434073959,10.37201833,126.79,126.77,34.36]
[1743434074451,18.26001833,126.79,126.77,34.36]
[1743434074652,10.31332347,126.78,126.74,10.31332347]
[1743434075152,18.20192347,126.78,126.75,42.2501]
[1743434075551,7.8886,126.78,126.75,42.2501]
[1743434076151,18.25991833,126.79,126.75,34.36]
[1743434076346,10.37201833,126.79,126.75,44.67332347]
[1743434076759,10.37201833,126.79,126.77,7.8884]
[1743434077055,10.37201833,126.79,126.75,44.67332347]
[1743434077261,0.05869486,126.79,126.75,44.67332347]
[1743434077555,0.05869486,126.79,126.78,7.8883]
[1743434078356,0.05869486,126.79,126.77,7.8885]
[1743434078558,0.05869486,126.79,126.75,44.67332347]
[1743434079256,10.37201833,126.79,126.75,34.36]
[1743434079454,18.25991833,126.79,126.77,7.8886]
[1743434079659,10.31332347,126.78,126.75,34.36]
[1743434080762,10.31332347,126.78,126.76,7.8891]
[1743434081566,18.20172347,126.78,126.76,7.8891]
[1743434081863,10.31332347,126.78,126.77,7.8889]
[1743434082365,10.31332347,126.78,126.76,7.8892]
[1743434083160,18.20162347,126.78,126.76,7.8892]
[1743434085166,18.26001833,126.79,126.77,7.8889]
[1743434085469,10.37201833,126.79,126.75,44.67332347]
[1743434085768,10.37201833,126.79,126.78,7.8883]
[1743434086169,10.37201833,126.79,126.77,34.34]
[1743434086365,7.8886,126.78,126.77,34.34]
[1743434086565,10.37201833,126.79,126.77,34.34]
[1743434088078,10.31332347,126.78,126.77,34.34]
[1743434088970,10.37201833,126.79,126.77,34.34]
[1743434090269,10.37201833,126.79,126.78,7.8883]
[1743434090466,10.37201833,126.79,126.77,34.34]
[1743434090966,10.37201833,126.79,126.77,42.2286]
[1743434091166,18.25971833,126.79,126.77,42.2286]
[1743434091670,18.25971833,126.79,126.77,34.34]
[1743434091870,7.8883,126.78,126.77,34.34]
[1743434092071,10.31332347,126.78,126.74,42.2302]
[1743434092267,10.31332347,126.76,126.74,42.2302]
[1743434092668,10.36918778,126.76,126.74,42.2302]
[1743434092867,10.36918778,126.76,126.74,34.34]
[1743434093068,18.25898778,126.76,126.74,34.34]
[1743434093263,18.25898778,126.76,126.73,7.8912]
[1743434093463,7.8901,126.75,126.73,7.8912]
[1743434093667,10.31332347,126.75,126.73,34.34]
[1743434094268,18.20382347,126.75,126.73,34.34]
[1743434096877,0.05586431,126.76,126.73,42.2314]
[1743434096878,10.36918778,126.76,126.73,42.2314]
[1743434098174,10.31332347,126.75,126.73,34.34]
[1743434098476,10.31332347,126.74,126.71,34.32]
[1743434098675,10.31332347,126.73,126.71,34.32]
[1743434099078,10.37322471,126.74,126.71,34.32]
[1743434099376,0.05990124,126.74,126.71,34.32]
[1743434100176,10.37322471,126.74,126.71,34.32]
[1743434100675,10.37322471,126.74,126.73,7.8914]
[1743434100881,10.37322471,126.74,126.71,34.32]
[1743434101069,0.05990124,126.74,126.71,34.32]
[1743434101377,10.31332347,126.78,126.73,10.31332347]
[1743434101576,10.31332347,126.78,126.74,10.31332347]
[1743434101877,10.31332347,126.78,126.77,7.8889]
[1743434102075,10.31332347,126.79,126.77,7.8889]
[1743434102471,10.31332347,126.78,126.76,7.8892]
[1743434102678,10.31332347,126.78,126.77,0.05911204]
[1743434103174,10.31332347,126.78,126.75,42.2099]
[1743434103478,10.31332347,126.77,126.75,34.32]
[1743434103876,10.31332347,126.76,126.72,34.32]
[1743434104078,10.31332347,126.75,126.72,34.32]
[1743434104380,10.31332347,126.73,126.7,34.32]
[1743434104770,10.31332347,126.73,126.71,7.8924]
[1743434104975,10.31332347,126.73,126.7,34.32]
[1743434105278,18.20492347,126.73,126.7,34.32]
[1743434105474,10.31332347,126.73,126.7,34.32]
[1743434105674,0.05626467,126.75,126.74,7.8908]
[1743434105875,0.05626467,126.75,126.74,52.52412347]
[1743434106679,0.05626467,126.75,126.74,42.2108]
[1743434106881,0.05626467,126.75,126.74,52.52412347]
[1743434107478,0.05626467,126.75,126.74,42.2108]
[1743434109276,0.05626467,126.75,126.72,10.31332347]
[1743434109474,0.05626467,126.75,126.73,34.3]
[1743434109780,0.05626467,126.75,126.74,7.8908]
[1743434110385,0.05626467,126.75,126.74,18.20412347]
[1743434110581,18.20072347,126.8,126.78,7.8882]
[1743434110776,10.31332347,126.8,126.78,7.8882]
[1743434110983,10.31332347,126.81,126.78,7.8882]
[1743434111180,10.31332347,126.8,126.77,42.1886]
[1743434111380,10.31332347,126.79,126.77,42.1886]
[1743434111582,10.31332347,126.8,126.77,34.3]
[1743434111787,0.05785291,126.79,126.78,7.8882]
[1743434111981,0.05785291,126.79,126.77,34.35112279]
[1743434112286,10.37117638,126.79,126.78,7.8883]
[1743434112581,8.0183,126.83,126.78,10.31332347]
[1743434112782,283.84,126.86,126.79,10.31332347]
[1743434113087,10.31332347,126.85,126.81,10.31332347]
[1743434113287,18.19712347,126.86,126.83,7.8848]
[1743434113479,10.31332347,126.85,126.83,7.8848]
[1743434113879,10.36289564,126.85,126.83,7.94431156]
[1743434114078,10.36289564,126.85,126.84,7.8845]
[1743434114390,0.04957217,126.85,126.83,0.05951156]
[1743434114684,10.36289564,126.85,126.83,0.05951156]
[1743434115083,0.04957217,126.85,126.83,0.05951156]
[1743434115389,0.04957217,126.85,126.84,7.8845]
[1743434115685,0.04957217,126.85,126.83,0.05951156]
[1743434116081,10.36289564,126.85,126.83,0.05951156]
[1743434116282,18.24689564,126.85,126.83,0.05951156]
[1743434116786,10.36289564,126.85,126.83,0.05951156]
[1743434117180,0.04957217,126.85,126.83,7.94441156]
[1743434117788,10.36289564,126.85,126.83,7.94441156]
[1743434118087,0.04957217,126.85,126.83,0.05951156]
[1743434118282,10.36289564,126.85,126.83,0.05951156]
[1743434118485,10.31332347,126.89,126.84,10.31332347]
[1743434118782,10.31332347,126.89,126.86,7.8829]
[1743434118783,18.19472347,126.89,126.86,7.8829]
[1743434118990,10.31332347,126.87,126.84,34.28]
[1743434119189,10.31332347,126.86,126.84,34.28]
[1743434119378,10.31332347,126.86,126.84,42.1642]
[1743434119584,10.36764251,126.86,126.84,34.33778915]
[1743434119779,10.31332347,126.85,126.84,34.33778915]
[1743434119985,18.19722347,126.85,126.84,34.33778915]
[1743434120287,10.31332347,126.85,126.84,34.33778915]
[1743434121094,18.19722347,126.85,126.84,34.33778915]
[1743434121290,10.31332347,126.85,126.77,10.31332347]
[1743434121587,10.31332347,126.83,126.78,44.57332347]
[1743434121785,10.31332347,126.84,126.8,10.31332347]
[1743434122181,10.31332347,126.86,126.81,10.31332347]
[1743434122388,10.31332347,126.86,126.82,44.57332347]
[1743434122389,0.05206348,126.83,126.82,44.57332347]
[1743434122592,10.31332347,126.87,126.82,44.57332347]
[1743434122893,10.31332347,126.87,126.85,7.8835]
[1743434123392,10.31332347,126.88,126.84,10.31332347]
[1743434123589,0.05691692,126.87,126.85,34.31860524]
[1743434123895,0.05691692,126.87,126.86,7.8833]
[1743434125090,0.05691692,126.87,126.86,18.19662347]
[1743434128499,0.05691692,126.87,126.85,44.63192871]
[1743434129205,0.05691692,126.87,126.85,52.51522871]
[1743434129699,0.05691692,126.87,126.86,7.8833]
[1743434133603,0.05691692,126.87,126.86,18.19662347]
[1743434133803,10.31332347,126.91,126.89,7.8811]
[1743434134005,18.67092347,126.92,126.89,42.1011]
[1743434134199,26.55072347,126.92,126.89,42.1011]
[1743434134504,4.206,126.96,126.89,44.53332347]
[1743434134693,10.31332347,126.95,126.9,10.31332347]
[1743434134893,0.05073734,126.92,126.9,10.37118115]
[1743434135096,0.05073734,126.92,126.91,7.8802]
[1743434136503,0.05073734,126.92,126.91,18.19352347]
[1743434137494,0.05073734,126.92,126.9,0.05785768]
[1743434138303,18.19352347,126.91,126.9,0.05785768]
[1743434139808,7.8827,126.87,126.86,358.0]
[1743434140009,7.8827,126.87,126.86,34.2]
[1743434140211,10.31332347,126.87,126.84,34.2]
[1743434140905,7.8836,126.86,126.83,7.8851]
[1743434141207,10.36467224,126.87,126.84,34.25587226]
[1743434141408,10.36467224,126.87,126.84,42.14037226]
[1743434141709,10.36467224,126.87,126.84,34.25587226]
[1743434143109,10.36467224,126.87,126.85,7.8836]
[1743434143406,0.05134877,126.87,126.84,44.56919573]
[1743434143811,0.05134877,126.87,126.85,7.8835]
[1743434144005,10.36467224,126.87,126.84,34.25587226]
[1743434144205,10.31332347,126.86,126.84,34.25587226]
[1743434144808,10.31332347,126.86,126.84,42.14017226]
[1743434145010,10.31332347,126.86,126.84,34.25587226]
[1743434145406,10.36467224,126.87,126.84,34.25587226]
[1743434145609,0.05134877,126.87,126.84,44.56919573]
[1743434146005,0.05134877,126.87,126.85,7.8839]
[1743434146210,10.36467224,126.87,126.84,34.25587226]
[1743434147412,18.24777224,126.87,126.84,42.13987226]
[1743434147706,18.24777224,126.87,126.84,34.25587226]
[1743434147914,10.31332347,126.86,126.84,34.25587226]
[1743434148212,10.31332347,126.86,126.84,0.05587226]
[1743434148515,10.36467224,126.87,126.85,7.8836]
[1743434149110,18.24747224,126.87,126.85,7.8836]
[1743434149314,0.05134877,126.87,126.84,0.05587226]
[1743434149514,0.05134877,126.87,126.84,10.36919573]
[1743434149714,0.05134877,126.87,126.84,0.05587226]
[1743434149914,0.05134877,126.87,126.85,7.8839]
[1743434151016,0.05134877,126.87,126.84,0.05587226]
[1743434151409,7.8836,126.86,126.84,0.05587226]
[1743434151911,16.1500311,126.87,126.84,0.05587226]
[1743434152113,16.09868233,126.85,126.78,31.76204707]
[1743434152314,16.09868233,126.85,126.8,34.18]
[1743434152617,16.09868233,126.85,126.78,31.76204707]
[1743434152815,7.8852,126.83,126.8,7.887]
[1743434153015,16.09868233,126.85,126.8,7.887]
[1743434153215,0.05272445,126.83,126.8,7.94378639]
[1743434153516,7.93792445,126.83,126.8,7.94378639]
[1743434154516,24.03660678,126.83,126.8,0.05678639]
[1743434154718,16.15140678,126.83,126.8,0.05678639]
[1743434155018,16.09868233,126.81,126.75,1.42334876]
[1743434155207,16.09868233,126.81,126.76,34.18]
[1743434155411,16.09868233,126.83,126.76,34.18]
[1743434155812,16.09868233,126.83,126.8,7.8867]
[1743434156118,16.15629861,126.83,126.8,7.94173187]
[1743434156321,0.05761628,126.83,126.8,34.23503187]
[1743434156717,0.05761628,126.83,126.82,7.8858]
[1743434157217,0.05761628,126.83,126.8,34.23503187]
[1743434158517,16.15629861,126.83,126.8,0.05503187]
[1743434159422,24.04189861,126.83,126.8,0.05503187]
[1743434159617,16.15629861,126.83,126.8,34.23503187]
[1743434160017,7.8864,126.81,126.8,34.23503187]
[1743434160219,0.05761628,126.83,126.8,34.23503187]
[1743434160619,7.94311628,126.83,126.8,34.23503187]
[1743434161014,0.05761628,126.83,126.8,34.23503187]
[1743434161219,16.15629861,126.83,126.8,34.23503187]
[1743434161419,0.05761628,126.83,126.8,34.23503187]
[1743434161622,7.94311628,126.83,126.8,34.23503187]
[1743434162223,0.05761628,126.83,126.8,34.23503187]
[1743434162625,7.94301628,126.83,126.8,42.12173187]
[1743434162821,0.05761628,126.83,126.8,34.23503187]
[1743434163223,7.8864,126.81,126.8,34.23503187]
[1743434164231,7.8886,126.78,126.76,358.0]
[1743434164433,7.8886,126.78,126.77,34.18]
[1743434164633,16.09868233,126.81,126.76,34.18]
[1743434164831,16.09868233,126.79,126.76,34.18]
[1743434165428,16.09868233,126.79,126.74,34.18]
[1743434165429,16.15579745,126.79,126.74,34.18]
[1743434165822,16.15579745,126.79,126.71,389.76204707]
[1743434166026,16.09868233,126.79,126.71,389.76204707]
[1743434166232,0.05998985,126.76,126.71,389.76204707]
[1743434166432,7.8905,126.75,126.71,423.94204707]
[1743434166735,0.05998985,126.76,126.71,34.18]
[1743434166926,7.94998985,126.76,126.71,42.0723]
[1743434167128,0.05998985,126.76,126.72,34.18]
[1743434167433,0.05998985,126.76,126.72,50.27868233]
[1743434167826,0.05998985,126.76,126.75,7.8901]
[1743434168028,10.78331863,126.91,126.75,381.97868233]
[1743434168230,19.09981863,126.91,126.83,16.09868233]
[1743434168423,19.09981863,126.91,126.84,34.18]
[1743434168623,19.09981863,126.91,126.85,16.09868233]
[1743434168823,10.78331863,126.91,126.88,7.8816]
[1743434169024,10.78331863,126.91,126.89,34.18]
[1743434169227,10.83985922,126.91,126.89,34.18]
[1743434169624,43.13327453,126.9,126.89,34.18]
[1743434171832,43.13327453,126.9,126.89,42.0614]
[1743434172736,0.05654059,126.91,126.89,34.18]
[1743434173338,0.05654059,126.91,126.9,7.8808]
[1743434175333,0.05654059,126.91,126.9,42.0408]
[1743434176040,11.2807,126.93,126.92,7.8796]
[1743434176336,11.2807,126.93,126.9,34.16]
[1743434176738,11.2807,126.93,126.9,42.0404]
[1743434177040,11.33666554,126.93,126.9,34.21579689]
[1743434177238,11.33666554,126.93,126.91,7.8802]
[1743434177435,11.33666554,126.93,126.91,16.09868233]
[1743434177738,11.33666554,126.93,126.92,7.8796]
[1743434177931,16.09868233,127.01,126.91,16.09868233]
[1743434178137,16.09868233,127.01,126.94,16.09868233]
[1743434178332,7.8742,127.01,126.95,42.0173]
[1743434178639,16.09868233,127.03,126.96,16.09868233]
[1743434178836,12.6731,127.04,126.98,7.8756]
[1743434179038,12.6731,127.04,126.99,34.14]
[1743434179233,0.05509496,127.02,127.0,0.05010802]
[1743434180939,0.05509496,127.02,127.01,34.12]
[1743434182736,0.05509496,127.02,127.0,0.05010802]
[1743434182944,0.05509496,127.02,127.01,34.12]
[1743434183744,7.92849496,127.02,127.01,34.12]
[1743434184049,0.05509496,127.02,127.0,0.05010802]
[1743434184346,7.874,127.01,127.0,0.05010802]
[1743434191150,0.05509496,127.02,127.0,0.05010802]
[1743434191749,0.05509496,127.02,127.0,7.92440802]
[1743434192050,0.05509496,127.02,127.0,0.05010802]
[1743434192449,0.05509496,127.02,127.01,7.874]
[1743434193343,7.8693,127.09,127.06,7.8706]
[1743434193550,12.3945,127.13,127.07,34.1]
[1743434193744,12.3945,127.13,127.08,34.1]
[1743434194349,7.869,127.09,127.08,34.1]
[1743434198149,7.8696,127.08,127.07,0.05670751]
[1743434198346,25.69677588,127.1,127.05,34.08]
[1743434198547,7.873,127.03,127.01,358.0]
[1743434198848,7.873,127.03,127.02,34.08]
[1743434199353,25.69677588,127.06,127.0,34.08]
[1743434199655,7.8734,127.02,127.01,0.05963807]
[1743434200651,0.05005221,127.04,127.01,0.05963807]
[1743434200956,7.8734,127.02,127.01,0.05963807]
[1743434201147,0.05005221,127.04,127.01,0.05963807]
[1743434202949,16.1097886,127.04,127.01,0.05963807]
[1743434203144,16.05973639,127.02,127.01,0.05963807]
[1743434203647,23.93313639,127.02,127.01,0.05963807]
[1743434205352,4.1202,127.03,127.01,0.05963807]
[1743434205549,0.05005221,127.04,127.01,0.05963807]
[1743434206555,7.92245221,127.04,127.01,0.05963807]
[1743434208057,16.1097886,127.04,127.01,0.05963807]
[1743434208250,16.05973639,127.02,126.98,34.06]
[1743434208950,34.06,127.05,126.98,34.06]
[1743434208951,16.05973639,127.04,126.98,34.06]
[1743434209157,7.8721,127.05,126.98,34.06]
[1743434209357,0.05064821,127.02,127.0,0.05419868]
[1743434209757,0.05064821,127.02,127.01,7.874]
[1743434210151,12.3055,127.07,127.04,7.8718]
[1743434210357,283.28,127.09,127.03,34.06]
[1743434210651,16.05973639,127.1,127.04,34.06]
[1743434210857,7.8693,127.09,127.06,7.8708]
[1743434211253,7.8693,127.09,127.06,7.92654352]
[1743434211462,0.05066394,127.09,127.06,0.05574352]
[1743434212565,7.8703,127.07,127.06,0.05574352]
[1743434213263,25.73273792,127.09,127.04,34.06]
[1743434213767,7.8718,127.05,127.01,34.04]
[1743434214166,7.8718,127.05,127.02,7.873]
[1743434214466,7.93020596,127.04,127.02,0.0602662]
[1743434214665,7.8724,127.04,127.02,0.0602662]
[1743434214863,7.92219804,127.04,127.02,0.0602662]
[1743434215166,0.04979804,127.04,127.03,41.9127]
[1743434216262,7.92189804,127.04,127.03,34.04]
[1743434216564,0.04979804,127.04,127.03,34.04]
[1743434217365,0.04979804,127.04,127.02,0.0602662]
[1743434218068,7.92219804,127.04,127.02,0.0602662]
[1743434218269,0.04979804,127.04,127.02,0.0602662]
[1743434218570,0.04979804,127.04,127.02,7.9330662]
[1743434218865,0.04979804,127.04,127.02,0.0602662]
[1743434220173,0.04979804,127.04,127.03,7.8727]
[1743434221969,4.1592,127.1,127.07,7.8701]
[1743434222174,4.1592,127.1,127.06,34.04]
[1743434222472,4.1592,127.1,127.06,41.9105]
[1743434222669,4.1592,127.1,127.03,34.04]
[1743434222871,25.68207398,127.07,126.99,34.04]
[1743434223073,7.8732,127.03,127.0,7.8743]
[1743434223267,7.8732,127.03,127.02,0.05745053]
[1743434223476,0.05216988,127.03,127.02,0.05745053]
[1743434224370,0.05216988,127.03,127.02,7.93085053]
[1743434224781,7.92486988,127.03,127.02,0.05745053]
[1743434228281,0.05216988,127.03,127.02,0.05745053]
[1743434228682,0.05216988,127.03,127.02,41.95085053]
[1743434229387,0.05216988,127.03,127.02,34.07745053]
[1743434229978,0.05216988,127.03,127.02,0.05745053]
[1743434230172,25.73424386,127.03,126.97,7.8762]
[1743434230379,4.2136,127.02,126.96,34.02]
[1743434230977,8.3627,127.05,126.96,59.70207398]
[1743434231283,8.3627,127.05,127.02,7.8731]
[1743434231284,16.2346,127.05,127.02,7.8731]
[1743434231675,16.28811099,127.05,127.02,0.05568795]
[1743434231883,7.8722,127.04,127.02,0.05568795]
[1743434233086,16.28781099,127.05,127.02,0.05568795]
[1743434233788,16.28781099,127.05,127.02,7.92878795]
[1743434234085,8.41621099,127.05,127.02,0.05568795]
[1743434235492,16.05798993,127.03,126.98,34.02]
[1743434235689,16.05798993,127.01,126.95,34.02]
[1743434236384,7.8761,126.98,126.95,41.8974]
[1743434236585,7.8761,126.98,126.95,34.02]
[1743434236786,0.05820197,126.98,126.96,7.877]